fUSD/lending_fUSD_20260304
["ID","MTS","AMOUNT","RATE_DAILY","PERIOD"]
[407651137,1772616633191,-500.0,0.00014264,2]
[407651138,1772616633200,-500.0,0.00014264,2]
[407651139,1772616633210,-500.0,0.00014264,2]
[407651140,1772616633219,-500.0,0.00014264,2]
[407651141,1772616633229,-500.0,0.00014264,2]
[407651142,1772616633239,-500.0,0.00014264,2]
[407651143,1772616633249,-500.0,0.00014264,2]
[407651144,1772616633259,-518.69824551,0.00014264,2]
[407651145,1772616633268,-500.0,0.00014264,2]
[407651146,1772616633277,-500.0,0.00014264,2]
[407651147,1772616633287,-500.0,0.00014264,2]
[407651148,1772616633296,-151.0,0.00014264,2]
[407651149,1772616633307,-151.0,0.00014264,2]
[407651150,1772616633316,-151.0,0.00014264,2]
[407651151,1772616633325,-500.0,0.00014264,2]
[407651152,1772616633335,-151.0,0.00014264,2]
[407651153,1772616633344,-500.0,0.00014264,2]
[407651154,1772616633353,-151.0,0.00014264,2]
[407651155,1772616633362,-500.0,0.00014264,2]
[407651156,1772616633372,-151.0,0.00014264,2]
[407651157,1772616633383,-151.0,0.00014264,2]
[407651158,1772616633394,-151.0,0.00014264,2]
[407651159,1772616633405,-151.0,0.00014264,2]
[407651160,1772616633415,-151.0,0.00014264,2]
[407651161,1772616633424,-151.0,0.00014264,2]
[407651162,1772616633433,-151.0,0.00014264,2]
[407651163,1772616633443,-151.0,0.0001427,2]
[407651165,1772616633452,-151.0,0.0001427,2]
[407651167,1772616633461,-500.0,0.00014272,2]
[407651169,1772616633470,-200.0,0.00014272,2]
[407651171,1772616633479,-500.0,0.00014272,2]
[407651173,1772616633489,-500.0,0.00014272,2]
[407651175,1772616633498,-500.0,0.00014272,2]
[407651177,1772616633507,-500.0,0.00014272,2]
[407651178,1772616633516,-491.87148293,0.00014272,2]
[407651180,1772616633525,-500.0,0.00014272,2]
[407651182,1772616633534,-500.0,0.00014272,2]
[407651185,1772616633543,-609.34019877,0.00014272,2]
[407651187,1772616633552,-500.0,0.00014272,2]
[407651188,1772616633561,-500.0,0.00014272,2]
[407651190,1772616633572,-500.0,0.00014272,2]
[407651192,1772616633584,-500.0,0.00014272,2]
[407651195,1772616633594,-500.0,0.00014272,2]
[407651197,1772616633603,-500.0,0.00014272,2]
[407651199,1772616633613,-500.0,0.00014272,2]
[407651200,1772616633623,-500.0,0.00014272,2]
[407651203,1772616633632,-500.0,0.00014272,2]
[407651204,1772616633641,-500.0,0.00014272,2]
[407651206,1772616633652,-500.0,0.00014272,2]
[407651208,1772616633661,-500.0,0.00014272,2]
[407651210,1772616633678,-500.0,0.00014272,2]
[407651212,1772616633699,-500.0,0.00014272,2]
[407651215,1772616633711,-500.0,0.00014272,2]
[407651216,1772616633721,-500.0,0.00014272,2]
[407651219,1772616633732,-500.0,0.00014272,2]
[407651221,1772616633743,-500.0,0.00014272,2]
[407651223,1772616633753,-500.0,0.00014272,2]
[407651225,1772616633764,-500.0,0.00014272,2]
[407651226,1772616633773,-500.0,0.00014272,2]
[407651228,1772616633783,-500.0,0.00014272,2]
[407651230,1772616633793,-500.0,0.00014272,2]
[407651232,1772616633805,-500.0,0.00014272,2]
[407651235,1772616633818,-500.0,0.00014272,2]
[407651237,1772616633827,-500.0,0.00014272,2]
[407651239,1772616633837,-500.0,0.00014272,2]
[407651240,1772616633847,-271.6670515,0.00014272,2]
[407651258,1772616634006,-228.3329485,0.00014272,2]
[407651261,1772616634020,-500.0,0.00014272,2]
[407651263,1772616634028,-500.0,0.00014272,2]
[407651265,1772616634040,-26.08513827,0.00014272,2]
[407651267,1772616634052,-473.91486173,0.00014272,2]
[407651269,1772616634061,-80.66687827,0.00014272,2]
[407651370,1772616640415,-419.33312173,0.00014272,2]
[407651371,1772616640425,-500.0,0.00014272,2]
[407651372,1772616640435,-500.0,0.00014272,2]
[407651373,1772616640445,-500.0,0.00014272,2]
[407651374,1772616640455,-500.0,0.00014272,2]
[407651375,1772616640465,-500.0,0.00014272,2]
[407651376,1772616640475,-500.0,0.00014272,2]
[407651377,1772616640484,-500.0,0.00014272,2]
[407651378,1772616640496,-500.0,0.00014272,2]
[407651379,1772616640506,-500.0,0.00014272,2]
[407651380,1772616640515,-500.0,0.00014272,2]
[407651381,1772616640525,-518.80368139,0.00014272,2]
[407651382,1772616640534,-500.0,0.00014272,2]
[407651383,1772616640544,-500.0,0.00014272,2]
[407651384,1772616640553,-188.32287344,0.00014272,2]
[407651385,1772616640735,-311.67712656,0.00014272,2]
[407651386,1772616640745,-500.0,0.00014272,2]
[407651387,1772616640755,-500.0,0.00014272,2]
[407651388,1772616640764,-500.0,0.00014272,2]
[407651389,1772616640774,-500.0,0.00014272,2]
[407651390,1772616640783,-500.0,0.00014272,2]
[407651391,1772616640793,-500.0,0.00014272,2]
[407651392,1772616640802,-500.0,0.00014272,2]
[407651393,1772616640812,-500.0,0.00014272,2]
[407651394,1772616640822,-500.0,0.00014272,2]
[407651395,1772616640831,-500.0,0.00014272,2]
[407651396,1772616640841,-500.0,0.00014272,2]
[407651397,1772616640851,-600.0,0.00014272,2]
[407651398,1772616640861,-500.0,0.00014272,2]
[407651399,1772616640870,-500.0,0.00014272,2]
[407651400,1772616640880,-500.0,0.00014272,2]
[407651401,1772616640890,-500.0,0.00014272,2]
[407651402,1772616640900,-500.0,0.00014272,2]
[407651403,1772616640910,-500.0,0.00014272,2]
[407651404,1772616640923,-464.33491494,0.00014272,2]
[407651405,1772616640935,-35.66508506,0.00014272,2]
[407651406,1772616640944,-500.0,0.00014272,2]
[407651407,1772616640954,-500.0,0.00014272,2]
[407651408,1772616640964,-500.0,0.00014272,2]
[407651409,1772616640974,-500.0,0.00014272,2]
[407651410,1772616640984,-500.0,0.00014272,2]
[407651411,1772616640994,-500.0,0.00014272,2]
[407651412,1772616641003,-500.0,0.00014272,2]
[407651413,1772616641013,-500.0,0.00014272,2]
[407651414,1772616641022,-678.98,0.00014272,2]
[407651415,1772616641035,-7221.51981496,0.00014273,2]
[407651416,1772616641048,-6428.03204122,0.00014273,2]
[407651417,1772616641060,-10486.44186916,0.00014273,2]
[407651418,1772616641402,-2475864.00627466,0.00014273,2]
[407651419,1772616641412,-166.66,0.00014299,2]
[407651420,1772616641425,-499.17,0.000143,2]
[407651421,1772616641447,-151.0,0.00014319,2]
[407651422,1772616641459,-500.11743182,0.00014373,2]
[407651423,1772616641470,-500.12727946,0.00014373,2]
[407651424,1772616641479,-167.10737651,0.00014373,2]
[407651425,1772616641490,-500.34430685,0.00014373,2]
[407651426,1772616641500,-500.07952757,0.00014373,2]
[407651427,1772616641510,-164.86203589,0.00014373,2]
[407651428,1772616641520,-500.0,0.00014373,2]
[407651429,1772616641529,-500.0,0.00014373,2]
[407651430,1772616641540,-500.0,0.00014373,2]
[407651431,1772616641550,-500.0,0.00014373,2]
[407651432,1772616641560,-170.96404904,0.00014373,2]
[407651433,1772616641574,-500.0,0.00014373,2]
[407651434,1772616641587,-500.0,0.00014373,2]
[407651435,1772616641597,-500.0,0.00014373,2]
[407651436,1772616641607,-165.49194322,0.00014373,2]
[407651437,1772616641616,-500.0,0.00014373,2]
[407651438,1772616641627,-500.0,0.00014373,2]
[407651439,1772616641638,-500.0,0.00014373,2]
[407651440,1772616641650,-500.0,0.00014373,2]
[407651441,1772616641660,-500.0,0.00014373,2]
[407651442,1772616641669,-500.0,0.00014373,2]
[407651443,1772616641679,-167.10131265,0.00014373,2]
[407651444,1772616641690,-501.14462458,0.00014373,2]
[407651445,1772616641699,-500.0,0.00014373,2]
[407651446,1772616641709,-500.0,0.00014373,2]
[407651447,1772616641718,-219.27895435,0.00014373,2]
[407651448,1772616641727,-500.0,0.00014373,2]
[407651449,1772616641735,-500.0,0.00014373,2]
[407651450,1772616641745,-240.12890457,0.00014373,2]
[407651451,1772616641754,-500.0,0.00014373,2]
[407651452,1772616641765,-500.0,0.00014373,2]
[407651453,1772616641775,-500.0,0.00014373,2]
[407651454,1772616641784,-500.0,0.00014373,2]
[407651455,1772616641794,-500.0,0.00014373,2]
[407651456,1772616641803,-500.0,0.00014373,2]
[407651457,1772616641813,-500.0,0.00014373,2]
[407651458,1772616641823,-500.0,0.00014373,2]
[407651459,1772616641833,-500.0,0.00014373,2]
[407651460,1772616641843,-500.0,0.00014373,2]
[407651461,1772616641852,-500.0,0.00014373,2]
[407651462,1772616641862,-167.08134951,0.00014373,2]
[407651463,1772616641871,-1502.21515879,0.00014373,2]
[407651464,1772616641881,-481.67683845,0.00014373,2]
[407651465,1772616641890,-1533.29220969,0.00014373,2]
[407651466,1772616641899,-614.52527515,0.00014373,2]
[407651467,1772616641910,-151.0,0.00014374,2]
[407651468,1772616641920,-151.0,0.00014429,2]
[407651469,1772616641929,-151.0,0.00014484,2]
[407651470,1772616641938,-151.0,0.00014539,2]
[407651471,1772616641953,-678.98,0.00014545,2]
[407651472,1772616641972,-479.74,0.00014555,2]
[407651473,1772616641983,-151.0,0.00014594,2]
[407651474,1772616641994,-8548.83733762,0.0001461,2]
[407651475,1772616642004,-166.66,0.00014756,2]
[407651476,1772616642013,-200.0,0.00014812,2]
[407651477,1772616642023,-678.98,0.00014819,2]
[407651478,1772616642033,-500.0,0.00014921,2]
[407651479,1772616642043,-500.0,0.00014921,2]
[407651480,1772616642053,-502.25687536,0.00014921,2]
[407651481,1772616642063,-500.37983606,0.00014921,2]
[407651482,1772616642073,-500.0,0.00014921,2]
[407651483,1772616642084,-500.0,0.00014921,2]
[407651484,1772616642094,-500.0,0.00014921,2]
[407651485,1772616642105,-500.0,0.00014921,2]
[407651486,1772616642116,-500.0,0.00014921,2]
[407651487,1772616642126,-500.0,0.00014921,2]
[407651488,1772616642137,-500.0,0.00014921,2]
[407651489,1772616642147,-500.0,0.00014921,2]
[407651490,1772616642158,-500.18261012,0.00014921,2]
[407651491,1772616642167,-500.0,0.00014921,2]
[407651492,1772616642177,-502.26276919,0.00014921,2]
[407651493,1772616642189,-500.0,0.00014921,2]
[407651494,1772616642199,-500.0,0.00014921,2]
[407651495,1772616642210,-500.0,0.00014921,2]
[407651496,1772616642220,-500.0,0.00014921,2]
[407651497,1772616642231,-500.0,0.00014921,2]
[407651498,1772616642242,-500.0,0.00014921,2]
[407651499,1772616642252,-309.98091476,0.00014921,2]
[407651500,1772616642261,-500.38582798,0.00014921,2]
[407651501,1772616642271,-407.27175767,0.00014921,2]
[407651502,1772616642281,-500.0,0.00014921,2]
[407651503,1772616642291,-250.0,0.00015,2]
[407651504,1772616642301,-7030.00725102,0.00015001,2]
[407651505,1772616642311,-8548.83733762,0.00015021,2]
[407651506,1772616642321,-450.32,0.00015068,2]
[407651507,1772616642332,-678.98,0.00015093,2]
[407651508,1772616642342,-166.66,0.00015213,2]
[407651509,1772616642353,-150.0,0.00015261,2]
[407651510,1772616642363,-184.899268,0.00015262,2]
[407651511,1772616642374,-479.74,0.00015321,2]
[407651512,1772616642384,-200.0,0.0001536,2]
[407651513,1772616642395,-678.98,0.00015367,2]
[407651514,1772616642407,-7030.00725102,0.00015415,2]
[407651515,1772616642418,-8548.83733762,0.00015433,2]
[407651516,1772616642428,-678.98,0.00015641,2]
[407651517,1772616642438,-166.66,0.0001567,2]
[407651518,1772616642449,-1600.0,0.0001571,2]
[407651519,1772616642459,-7030.00725102,0.00015829,2]
[407651520,1772616642471,-8548.83733762,0.00015844,2]
[407651521,1772616642481,-200.0,0.00015908,2]
[407651522,1772616642491,-678.98,0.00015915,2]
[407651523,1772616642502,-2500.84,0.00015963,2]
[407651524,1772616642516,-479.74,0.00016087,2]
[407651525,1772616642528,-166.66,0.00016127,2]
[407651526,1772616642539,-678.99421015,0.00016189,2]
[407651527,1772616642550,-7030.00725102,0.00016244,2]
[407651528,1772616642560,-8548.83733762,0.00016255,2]
[407651529,1772616642570,-184.3,0.00016438,30]
[407651530,1772616642582,-450.32,0.00016438,2]
[407651531,1772616642592,-200.0,0.00016456,2]
[407651532,1772616642788,-7030.00725102,0.00016658,2]
[407651533,1772616642838,-8548.83733762,0.00016666,2]
[407651534,1772616642850,-1049.80661277,0.00016753,2]
[407651535,1772616642860,-162.67382676,0.00016753,2]
[407651536,1772616642869,-398.78432095,0.00016753,2]
[407651537,1772616642879,-360.68011536,0.00016753,2]
[407651538,1772616642889,-199.65636282,0.00016753,2]
[407651539,1772616642899,-426.58,0.0001679,2]
[407651540,1772616642911,-500.0,0.00016795,2]
[407651541,1772616642920,-107112.279,0.00016822,2]
[407651542,1772616642929,-479.74,0.00016853,2]
[407651543,1772616642938,-9999.99,0.00016922,2]
[407651544,1772616642947,-1544.26,0.00016922,2]
[407651545,1772616642957,-150.99,0.00016922,2]
[407651546,1772616642966,-999.99,0.00016922,2]
[407651547,1772616642975,-299.99,0.00016922,4]
[407651548,1772616642986,-9732.73,0.00016922,2]
[407651549,1772616642996,-556.89,0.00016922,2]
[407651550,1772616643006,-507.03,0.00016922,2]
[407651552,1772616643015,-150.99,0.00016922,2]
[407651554,1772616643026,-499.99,0.00016922,2]
[407651555,1772616643036,-315.74082907,0.00016973,2]
[407651557,1772616643045,-182.43846544,0.00016973,2]
[407651558,1772616643057,-500.0,0.00016973,2]
[407651559,1772616643066,-500.0,0.00016973,2]
[407651561,1772616643076,-300.0,0.00017,2]
[407651562,1772616643086,-426.58,0.0001706,2]
[407651563,1772616643095,-7030.00725102,0.00017072,2]
[407651564,1772616643104,-8548.83733762,0.00017078,2]
[407651565,1772616643114,-151.0,0.00017099,2]
[407651566,1772616643124,-500.0,0.00017099,2]
[407651567,1772616643133,-500.0,0.00017099,2]
[407651568,1772616643143,-151.0,0.00017099,2]
[407651569,1772616643153,-151.0,0.00017099,2]
[407651570,1772616643167,-500.0,0.00017099,2]
[407651571,1772616643176,-151.0,0.00017099,2]
[407651572,1772616643185,-500.0,0.00017099,2]
[407651573,1772616643195,-500.0,0.00017099,2]
[407651574,1772616643204,-151.0,0.00017099,2]
[407651575,1772616643214,-500.0,0.00017099,2]
[407651576,1772616643224,-151.0,0.00017099,2]
[407651577,1772616643233,-500.0,0.00017099,2]
[407651578,1772616643242,-151.0,0.00017099,2]
[407651579,1772616643252,-500.0,0.00017099,2]
[407651580,1772616643262,-151.0,0.00017099,2]
[407651581,1772616643272,-250.0,0.00017099,2]
[407651582,1772616643282,-500.0,0.00017099,2]
[407651583,1772616643291,-151.0,0.00017099,2]
[407651584,1772616643301,-1000.0,0.00017099,2]
[407651585,1772616643311,-250.0,0.00017099,2]
[407651586,1772616643321,-500.0,0.00017099,2]
[407651587,1772616643331,-578.20924308,0.00017099,2]
[407651588,1772616643341,-151.0,0.00017099,2]
[407651589,1772616643351,-250.0,0.00017099,2]
[407651590,1772616643360,-500.0,0.00017099,2]
[407651591,1772616643370,-151.0,0.00017099,2]
[407651592,1772616643379,-381.57639944,0.00017099,2]
[407651593,1772616643389,-151.0,0.00017099,2]
[407651594,1772616643399,-693.3919763,0.00017099,2]
[407651595,1772616643409,-174.61919141,0.00017099,2]
[407651596,1772616643419,-151.0,0.00017099,2]
[407651597,1772616643428,-329.2741284,0.00017099,2]
[407651598,1772616643437,-269.917619,0.00017099,2]
[407651599,1772616643447,-719.04747942,0.00017154,2]
[407651600,1772616643456,-151.0,0.00017154,2]
[407651601,1772616643466,-745.65223616,0.00017209,2]
[407651602,1772616643476,-151.0,0.00017209,2]
[407651603,1772616643485,-16335.43,0.00017264,2]
[407651604,1772616643495,-773.2413689,0.00017264,2]
[407651605,1772616643505,-151.0,0.00017264,2]
[407651606,1772616643515,-4000.0,0.000173,6]
[407651607,1772616643524,-801.85129955,0.00017319,2]
[407651608,1772616643533,-151.0,0.00017319,2]
[407651609,1772616643543,-1049.80661276,0.00017327,2]
[407651610,1772616643553,-162.67382676,0.00017327,2]
[407651611,1772616643563,-398.78432093,0.00017327,2]
[407651612,1772616643573,-360.68011535,0.00017327,2]
[407651613,1772616643586,-426.58,0.0001733,2]
[407651614,1772616643595,-1278.0,0.00017364,2]
[407651615,1772616643605,-921.0,0.00017364,2]
[407651616,1772616643615,-1212.0,0.00017364,2]
[407651617,1772616643625,-3501.0,0.00017364,2]
[407651618,1772616643635,-1341.788,0.00017364,2]
[407651619,1772616643644,-619.0,0.00017364,2]
[407651620,1772616643656,-831.51979763,0.00017374,2]
[407651621,1772616643665,-151.0,0.00017374,2]
[407651622,1772616643674,-2005.0,0.000174,2]
[407651623,1772616643684,-10000.0,0.000174,2]
[407651624,1772616643693,-800.0,0.000174,6]
[407651625,1772616643703,-862.28603014,0.00017429,2]
[407651626,1772616643712,-151.0,0.00017429,2]
[407651627,1772616643722,-1600.0,0.00017456,2]
[407651628,1772616643731,-894.19061326,0.00017484,2]
[407651629,1772616643741,-7030.00725102,0.00017486,2]
[407651630,1772616643750,-8548.83733762,0.00017489,2]
[407651631,1772616643760,-800.0,0.000175,6]
[407651633,1772616643769,-1000.0,0.00017521,2]
[407651635,1772616643779,-1000.0,0.00017521,2]
[407651636,1772616643788,-350.0,0.00017527,2]
[407651637,1772616643798,-927.27566595,0.00017539,2]
[407651638,1772616643807,-961.58486559,0.00017594,2]
[407651639,1772616643817,-426.58,0.000176,2]
[407651640,1772616643826,-800.0,0.000176,6]
[407651641,1772616643836,-479.74,0.00017619,2]
[407651642,1772616643845,-201.42874694,0.0001764,2]
[407651643,1772616643856,-252.67365585,0.00017647,2]
[407651644,1772616643866,-1000.0,0.00017647,2]
[407651645,1772616643876,-181.08010149,0.00017647,2]
[407651646,1772616643885,-279.9045709,0.00017647,2]
[407651647,1772616643894,-997.16350561,0.00017649,2]
[407651648,1772616643904,-260.56842108,0.00017652,2]
[407651649,1772616643914,-800.0,0.000177,6]
[407651650,1772616643923,-172.65896273,0.0001773,2]
[407651651,1772616643933,-160.0,0.0001773,2]
[407651652,1772616643943,-25000.0,0.00017777,3]
[407651653,1772616643954,-151.0,0.00017782,2]
[407651654,1772616643964,-25000.0,0.00017786,3]
[407651655,1772616643975,-25000.0,0.00017794,3]
[407651656,1772616643987,-1206.5711,0.000178,2]
[407651657,1772616644007,-1000.0,0.000178,2]
[407651658,1772616644023,-402.0,0.000178,2]
[407651659,1772616644033,-1100.0,0.000178,6]
[407651660,1772616644043,-25000.0,0.00017803,3]
[407651661,1772616644052,-25000.0,0.00017812,3]
[407651662,1772616644063,-25000.0,0.00017821,3]
[407651663,1772616644072,-25000.0,0.0001783,3]
[407651664,1772616644083,-25000.0,0.00017838,3]
[407651665,1772616644093,-25000.0,0.00017847,3]
[407651666,1772616644102,-25000.0,0.00017856,3]
[407651667,1772616644112,-25000.0,0.00017865,3]
[407651668,1772616644121,-426.58,0.0001787,2]
[407651669,1772616644130,-350.0,0.00017871,2]
[407651670,1772616644139,-25000.0,0.00017874,3]
[407651671,1772616644148,-25000.0,0.00017882,3]
[407651672,1772616644159,-25000.0,0.00017891,3]
[407651673,1772616644168,-24029.2382309,0.000179,3]
[407651674,1772616644399,-970.7617691,0.000179,3]
[407651675,1772616644411,-172.65896273,0.000179,3]
[407651676,1772616644420,-172.65896273,0.000179,3]
[407651677,1772616644430,-7030.00725102,0.000179,2]
[407651678,1772616644439,-8548.83733762,0.000179,2]
[407651679,1772616644448,-1049.80661276,0.000179,2]
[407651680,1772616644458,-162.67382676,0.000179,2]
[407651681,1772616644467,-398.78432093,0.000179,2]
[407651682,1772616644477,-360.68011535,0.000179,2]
[407651683,1772616644485,-3943.52545845,0.000179,2]
[407651684,1772616644494,-7157.0,0.000179,2]
[407651685,1772616644502,-500.0,0.00017918,2]
[407651686,1772616644511,-1179.0,0.00017973,2]
[407651687,1772616644519,-150.0,0.00017979,2]
[407651688,1772616644528,-250.64816287,0.0001799,2]
[407651689,1772616644537,-250.64816287,0.0001799,2]
[407651690,1772616644545,-1853.27190099,0.00017996,3]
[407651691,1772616644553,-3201.74531741,0.00017996,4]
[407651692,1772616644561,-42076.6197298,0.00017996,2]
[407651693,1772616644571,-2108.0731479,0.00017996,2]
[407651694,1772616644582,-4917.3906514,0.00017996,2]
[407651695,1772616644595,-46767.3951106,0.00017996,2]
[407651696,1772616644603,-4781.4243895,0.00017996,2]
[407651697,1772616644612,-151.0,0.00017997,2]
[407651698,1772616644622,-150.48411838,0.00017998,2]
[407651699,1772616644631,-500.0,0.00017998,2]
[407651700,1772616644640,-500.0,0.00017998,2]
[407651701,1772616644648,-500.0,0.00017998,2]
[407651702,1772616644659,-196.56866628,0.00017998,2]
[407651703,1772616644668,-168.85608106,0.00017998,2]
[407651704,1772616644677,-500.0,0.00017998,2]
[407651705,1772616644686,-500.0,0.00017998,2]
[407651706,1772616644696,-276.86206583,0.00017998,2]
[407651707,1772616644705,-500.0,0.00017998,2]
[407651708,1772616644715,-281.16143724,0.00017998,2]
[407651709,1772616644723,-553.09664808,0.00017998,2]
[407651710,1772616644732,-500.0,0.00017998,2]
[407651711,1772616644740,-500.0,0.00017998,2]
[407651712,1772616644749,-500.0,0.00017998,2]
[407651713,1772616644758,-500.0,0.00017998,2]
[407651714,1772616644767,-500.0,0.00017998,2]
[407651715,1772616644775,-284.65905516,0.00017998,2]
[407651716,1772616644784,-500.0,0.00017998,2]
[407651717,1772616644793,-461.58342666,0.00017998,2]
[407651718,1772616644802,-155.0,0.00017999,2]
[407651719,1772616644810,-300.0,0.00017999,2]
[407651720,1772616644819,-174.15,0.00017999,2]
[407651721,1772616644827,-57267.92445172,0.00017999,2]
[407651722,1772616644835,-300.0,0.00017999,2]
[407651723,1772616644845,-670.86732423,0.00017999,2]
[407651724,1772616644852,-300.0,0.00017999,2]
[407651725,1772616644862,-78124.88553727,0.00018,2]
[407651726,1772616644873,-97077.50851462,0.00018,2]
[407651727,1772616644891,-922.02871891,0.00018,2]
[407651728,1772616644946,-1780.29627709,0.00018,2]
[407651729,1772616644957,-1897.46000004,0.00018,2]
[407651730,1772616644971,-2684.38348154,0.00018,2]
[407651731,1772616644982,-268.1202988,0.00018,2]
[407651738,1772616646306,-14190.99935894,0.00018,2]
[407651739,1772616646318,-129162.03076177,0.00018,2]
[407651740,1772616646329,-79477.31861795,0.00018,2]
[407651741,1772616646361,-3150.49182209,0.00018,2]
[407651742,1772616646417,-1804.44700046,0.00018,2]
[407651743,1772616646428,-1630.65388318,0.00018,2]
[407651745,1772617119327,-160.0,0.000126,2]
[407651746,1772617608111,-346.1865221,0.00011507,2]
[407651747,1772617671586,390.0,0.00017,120]
[407651748,1772617747092,-500.0,9.003e-05,2]
[407651749,1772617747113,-650.90522382,9.003e-05,2]
[407651750,1772617747135,-500.0,9.003e-05,2]
[407651751,1772617747156,-500.0,9.003e-05,2]
[407651752,1772617747177,-314.0,9.902e-05,2]
[407651753,1772617747201,-300.0,9.902e-05,2]
[407651754,1772617747223,-103.07408918,9.903e-05,2]
[407651767,1772617832215,-1200.0,9.902e-05,2]
[407651769,1772617832225,-300.0,9.902e-05,2]
[407651770,1772617832234,-231.0,9.903e-05,2]
[407651772,1772617832242,-146.92591082,9.903e-05,2]
[407651773,1772617832250,-3266.98508825,9.903e-05,2]
[407651775,1772617832258,-2033.43928228,9.903e-05,2]
[407651777,1772617832268,-556.4256,9.903e-05,2]
[407651778,1772617832287,-927.69623708,9.903e-05,2]
[407651779,1772617832298,-748.00966555,9.903e-05,2]
[407651780,1772617832310,-734.42921509,9.903e-05,2]
[407651781,1772617832319,-86.12069846,0.0001,2]
[407651783,1772617832330,-122.2434652,0.0001,2]
[407651784,1772617832339,-208.36416366,0.0001,2]
[407651785,1772617832352,-250.0,0.00010892,2]
[407651786,1772617832361,-1026.11964272,0.00010893,2]
[407651787,1772617832372,-653.88035728,0.00010893,2]
[407651788,1772617832381,-186.0,0.00010893,2]
[407651789,1772617832390,-300.0,0.00011506,2]
[407651790,1772617832400,-1653.9234779,0.00011507,2]
[407651791,1772617832409,-208.36416366,0.00011507,2]
[407651792,1772617832418,-200.0,0.00011663,2]
[407651793,1772617832427,-150.0,0.0001169,2]
[407651795,1772617832436,-271.15498111,0.000119,2]
[407651797,1772617832448,-57.14761645,0.000119,2]
[407651799,1772617832457,-1756.0,0.00011982,2]
[407651801,1772617832466,-185.3598084,0.00012,2]
[407651803,1772617832476,-584.8257687,0.00012,2]
[407651805,1772617832484,-500.0,0.00012,2]
[407651808,1772617832493,-500.0,0.00012,2]
[407651810,1772617832502,-500.0,0.00012,2]
[407651813,1772617832512,-980.12020361,0.00012,2]
[407651816,1772617832520,-500.0,0.00012,2]
[407651819,1772617832529,-500.0,0.00012,2]
[407651821,1772617832538,-93.68129665,0.00012,2]
[407651822,1772617832549,-406.31870335,0.00012,2]
[407651823,1772617832558,-60.96075561,0.00012199,2]
[407651824,1772617832569,-223.03924439,0.00012199,2]
[407651825,1772617832577,-150.0,0.00012234,2]
[407651826,1772617832585,-7045.86,0.00012236,2]
[407651827,1772617832594,-1839.0,0.00012278,2]
[407651828,1772617832602,-1132.0,0.00012302,2]
[407651829,1772617832611,-4000.0,0.00012364,2]
[407651830,1772617832620,-328.30259756,0.00012555,2]
[407651831,1772617832628,-177.22,0.0001256,2]
[407651832,1772617832636,-254.5004,0.000126,2]
[407651833,1772617832645,-500.0,0.000126,4]
[407651834,1772617832654,-300.0,0.00012637,2]
[407651835,1772617832662,-250.0,0.00012658,2]
[407651836,1772617832671,-470.22066299,0.00012658,2]
[407651837,1772617832679,-193.0,0.00012658,2]
[407651838,1772617832688,-4000.0,0.00012673,2]
[407651839,1772617832696,-1000.0,0.000127,4]
[407651840,1772617832704,-33880.26915767,0.00012701,2]
[407651841,1772617832715,-62436.70329527,0.00012701,2]
[407651842,1772617832726,-13945.76906016,0.00012701,2]
[407651843,1772617832737,-899.44481275,0.00012701,2]